fUST/lending_fUST_20250113
["ID","MTS","AMOUNT","RATE_DAILY","PERIOD"]
[348753185,1736771440705,-151.0,0.00023625,7]
[348753186,1736771440715,-151.0,0.00023625,7]
[348753187,1736771440727,-151.0,0.00023625,7]
[348753188,1736771440736,-151.0,0.00023625,7]
[348753189,1736771440745,-151.0,0.00023625,7]
[348753190,1736771440755,-151.0,0.00023625,7]
[348753191,1736771440765,-151.0,0.00023625,7]
[348753192,1736771440774,-151.0,0.00023625,7]
[348753193,1736771440784,-151.0,0.00023625,7]
[348753194,1736771440793,-151.0,0.00023625,7]
[348753195,1736771440803,-151.0,0.00023625,7]
[348753196,1736771440812,-151.0,0.00023625,7]
[348753197,1736771440821,-151.0,0.00023625,7]
[348753198,1736771440830,-151.0,0.00023625,7]
[348753199,1736771440839,-151.0,0.00023625,7]
[348753200,1736771440849,-251.724858,0.00023625,7]
[348753201,1736771440858,-151.0,0.00023625,7]
[348753202,1736771440867,-151.0,0.00023625,7]
[348753203,1736771440876,-151.0,0.00023625,7]
[348753204,1736771440885,-151.0,0.00023625,7]
[348753205,1736771440894,-151.0,0.00023625,7]
[348753206,1736771440903,-151.0,0.00023625,7]
[348753207,1736771440912,-151.0,0.00023625,7]
[348753208,1736771440921,-151.0,0.00023625,7]
[348753209,1736771440931,-151.0,0.00023625,7]
[348753210,1736771440941,-151.0,0.00023625,7]
[348753211,1736771440952,-151.0,0.00023625,7]
[348753212,1736771440961,-151.0,0.00023625,7]
[348753213,1736771440971,-151.0,0.00023625,7]
[348753214,1736771440983,-151.0,0.00023625,7]
[348753215,1736771440992,-151.0,0.00023625,7]
[348753216,1736771441001,-151.0,0.00023625,7]
[348753217,1736771441014,-151.0,0.00023625,7]
[348753218,1736771441132,-151.0,0.00023625,7]
[348753219,1736771441142,-151.0,0.00023625,7]
[348753220,1736771441152,-151.0,0.00023625,7]
[348753221,1736771441161,-156.078054,0.00023625,7]
[348753222,1736771441170,-151.0,0.00023625,7]
[348753223,1736771441179,-151.0,0.00023625,7]
[348753224,1736771441188,-151.0,0.00023625,7]
[348753225,1736771441197,-151.0,0.00023625,7]
[348753226,1736771441206,-151.0,0.00023625,7]
[348753227,1736771441216,-151.0,0.00023625,7]
[348753228,1736771441226,-151.0,0.00023625,7]
[348753229,1736771441235,-192.352149,0.00023625,7]
[348753230,1736771441245,-151.0,0.00023625,7]
[348753231,1736771441254,-151.0,0.00023625,7]
[348753232,1736771441263,-151.0,0.00023625,7]
[348753233,1736771441272,-151.0,0.00023625,7]
[348753234,1736771441281,-151.0,0.00023625,7]
[348753235,1736771441291,-464.84987,0.00023625,7]
[348753236,1736771441300,-464.84987,0.00023625,7]
[348753237,1736771441309,-464.84987,0.00023625,7]
[348753238,1736771441318,-464.84987,0.00023625,7]
[348753239,1736771441327,-464.84987,0.00023625,7]
[348753240,1736771441336,-464.84987,0.00023625,7]
[348753241,1736771441346,-464.84987,0.00023625,7]
[348753242,1736771441355,-464.84987,0.00023625,7]
[348753243,1736771441365,-464.84987,0.00023625,7]
[348753244,1736771441374,-464.84987,0.00023625,7]
[348753245,1736771441383,-464.84987,0.00023625,7]
[348753246,1736771441392,-464.84987,0.00023625,7]
[348753247,1736771441401,-464.84987,0.00023625,7]
[348753248,1736771441410,-464.84987,0.00023625,7]
[348753249,1736771441420,-464.84987,0.00023625,7]
[348753250,1736771441429,-464.84987,0.00023625,7]
[348753251,1736771441439,-464.84987,0.00023625,7]
[348753252,1736771441448,-464.84987,0.00023625,7]
[348753253,1736771441457,-464.84987,0.00023625,7]
[348753254,1736771441466,-464.84987,0.00023625,7]
[348753255,1736771441477,-151.0,0.00023625,7]
[348753256,1736771441487,-151.0,0.00023625,7]
[348753257,1736771441496,-151.0,0.00023625,7]
[348753258,1736771441505,-151.0,0.00023625,7]
[348753259,1736771441514,-151.0,0.00023625,7]
[348753260,1736771441523,-151.0,0.00023625,7]
[348753261,1736771441532,-151.0,0.00023625,7]
[348753262,1736771441541,-151.0,0.00023625,7]
[348753263,1736771441551,-151.0,0.00023625,7]
[348753264,1736771441560,-484339.90207146,0.00023625,10]
[348753265,1736771441623,-155500.0,0.00023625,10]
[348753297,1736771443328,-7977.03154019,0.00023625,10]
[348753298,1736771443339,-1874.67824583,0.00023625,10]
[348753314,1736771446295,-970.195,0.00023625,10]
[348753315,1736771446358,-41.12834823,0.00023625,10]
[348753316,1736771446369,-19180.43488219,0.00023625,10]
[348753317,1736771446383,-693.6739208,0.00023625,10]
[348753318,1736771514753,172.167582,0.00013973,2]
[348753341,1736772438316,187.631594,0.00013973,2]
[348753343,1736772447142,-178.42661471,0.00019073,2]
[348753344,1736772454100,-7.00667973,0.00019073,2]
[348753345,1736772454124,-647.7365192,0.00019126,2]
[348753346,1736772454148,-300.0,0.00019168,2]
[348753347,1736772454172,-1939.5642539,0.00019168,2]
[348753355,1736772517039,761.49,0.00025,120]
[348753356,1736772550115,-775.439607,0.00019081,2]
[348753357,1736772550136,-13126.4198015,0.00019166,2]
[348753358,1736772557116,-46089.5801985,0.00019166,2]
[348753359,1736772557140,-300.0,0.0001917,2]
[348753360,1736772557163,-165.21065165,0.00019171,2]
[348753361,1736772557186,-500.0,0.00019171,2]
[348753362,1736772557208,-500.0,0.00019171,2]
[348753363,1736772557230,-500.0,0.00019171,2]
[348753364,1736772557252,-500.0,0.00019171,2]
[348753365,1736772557274,-500.0,0.00019171,2]
[348753366,1736772557305,-500.0,0.00019171,2]
[348753367,1736772557333,-500.0,0.00019171,2]
[348753368,1736772557356,-329.07867681,0.00019171,2]
[348753369,1736772557379,-500.0,0.00019171,2]
[348753370,1736772557403,-567.77318889,0.00019171,2]
[348753371,1736772557430,-500.0,0.00019171,2]
[348753372,1736772557453,-500.0,0.00019171,2]
[348753373,1736772557475,-500.0,0.00019171,2]
[348753374,1736772557499,-500.0,0.00019171,2]
[348753375,1736772557521,-500.0,0.00019171,2]
[348753376,1736772557544,-500.0,0.00019171,2]
[348753377,1736772557567,-500.0,0.00019171,2]
[348753378,1736772557589,-500.0,0.00019171,2]
[348753379,1736772557611,-500.0,0.00019171,2]
[348753380,1736772557634,-500.0,0.00019171,2]
[348753381,1736772557654,-500.0,0.00019171,2]
[348753382,1736772557680,-500.0,0.00019171,2]
[348753383,1736772557702,-500.0,0.00019171,2]
[348753384,1736772557723,-500.0,0.00019171,2]
[348753385,1736772557746,-500.0,0.00019171,2]
[348753386,1736772557767,-500.0,0.00019171,2]
[348753387,1736772557787,-500.0,0.00019171,2]
[348753388,1736772557809,-500.0,0.00019171,2]
[348753389,1736772557831,-500.0,0.00019171,2]
[348753390,1736772557852,-500.0,0.00019171,2]
[348753391,1736772557875,-500.0,0.00019171,2]
[348753392,1736772557898,-500.0,0.00019171,2]
[348753393,1736772557924,-500.0,0.00019171,2]
[348753394,1736772557946,-500.0,0.00019171,2]
[348753395,1736772557973,-500.0,0.00019171,2]
[348753396,1736772557997,-500.0,0.00019171,2]
[348753397,1736772558020,-500.0,0.00019171,2]
[348753398,1736772558046,-500.0,0.00019171,2]
[348753399,1736772558069,-500.0,0.00019171,2]
[348753400,1736772558092,-500.0,0.00019171,2]
[348753401,1736772558114,-500.0,0.00019171,2]
[348753402,1736772558136,-500.0,0.00019171,2]
[348753403,1736772558158,-500.0,0.00019171,2]
[348753404,1736772558183,-75.46207423,0.00019171,2]
[348753405,1736772561163,-424.53792577,0.00019171,2]
[348753406,1736772561186,-500.0,0.00019171,2]
[348753407,1736772561213,-500.0,0.00019171,2]
[348753408,1736772561236,-500.0,0.00019171,2]
[348753409,1736772561258,-500.0,0.00019171,2]
[348753410,1736772561280,-500.0,0.00019171,2]
[348753411,1736772561429,-500.0,0.00019171,2]
[348753412,1736772561455,-500.0,0.00019171,2]
[348753413,1736772561476,-500.0,0.00019171,2]
[348753414,1736772561499,-500.0,0.00019171,2]
[348753415,1736772561520,-500.0,0.00019171,2]
[348753416,1736772561542,-350.0,0.00019171,2]
[348753417,1736772561563,-499.99999999,0.00019171,2]
[348753418,1736772561585,-500.0,0.00019171,2]
[348753419,1736772561605,-500.0,0.00019171,2]
[348753420,1736772561628,-500.0,0.00019171,2]
[348753421,1736772561648,-500.0,0.00019171,2]
[348753422,1736772561675,-500.0,0.00019171,2]
[348753423,1736772561696,-500.0,0.00019171,2]
[348753424,1736772561716,-500.0,0.00019171,2]
[348753425,1736772561738,-500.0,0.00019171,2]
[348753426,1736772561759,-460.65211749,0.00019171,2]
[348753427,1736772561781,-500.0,0.00019171,2]
[348753428,1736772561803,-500.0,0.00019171,2]
[348753429,1736772561824,-284.7067292,0.00019171,2]
[348753430,1736772561847,-500.0,0.00019178,2]
[348753431,1736772561870,-500.0,0.00019178,2]
[348753432,1736772561891,-500.0,0.00019178,2]
[348753433,1736772561912,-502.3459423,0.00019178,2]
[348753434,1736772561939,-368.19436166,0.00019178,2]
[348753435,1736772561965,-500.0,0.00019178,2]
[348753436,1736772561988,-500.0,0.00019178,2]
[348753437,1736772562010,-500.0,0.00019178,2]
[348753438,1736772562033,-500.0,0.00019178,2]
[348753439,1736772562054,-500.0,0.00019178,2]
[348753440,1736772562074,-500.0,0.00019178,2]
[348753441,1736772562096,-500.0,0.00019178,2]
[348753442,1736772562117,-500.0,0.00019178,2]
[348753443,1736772562139,-500.0,0.00019178,2]
[348753444,1736772562160,-500.0,0.00019178,2]
[348753445,1736772562185,-500.0,0.00019178,2]
[348753446,1736772562205,-502.98263348,0.00019178,2]
[348753447,1736772562226,-501.74571841,0.00019178,2]
[348753448,1736772562246,-500.0,0.00019178,2]
[348753449,1736772562267,-303.49367552,0.00019178,2]
[348753450,1736772562289,-601.79834697,0.00019178,2]
[348753451,1736772562312,-500.0,0.00019178,2]
[348753452,1736772562333,-503.45019622,0.00019178,2]
[348753453,1736772562355,-500.0,0.00019178,2]
[348753454,1736772562377,-506.47532817,0.00019178,2]
[348753455,1736772562399,-503.33007149,0.00019178,2]
[348753456,1736772562425,-500.0,0.00019178,2]
[348753457,1736772562448,-524.16449791,0.00019178,2]
[348753458,1736772562470,-502.90299173,0.00019178,2]
[348753459,1736772562493,-502.52728249,0.00019178,2]
[348753460,1736772562514,-403.99238607,0.00019178,2]
[348753461,1736772562536,-500.0,0.00019178,2]
[348753462,1736772562558,-500.0,0.00019178,2]
[348753463,1736772562579,-500.0,0.00019178,2]
[348753464,1736772562601,-500.0,0.00019178,2]
[348753465,1736772562622,-500.0,0.00019178,2]
[348753466,1736772562644,-500.0,0.00019178,2]
[348753467,1736772562669,-421.41135891,0.00019178,2]
[348753468,1736772562690,-500.0,0.00019178,2]
[348753469,1736772562711,-500.0,0.00019178,2]
[348753470,1736772562734,-500.0,0.00019178,2]
[348753471,1736772562754,-500.0,0.00019178,2]
[348753472,1736772562775,-500.0,0.00019178,2]
[348753473,1736772562797,-500.0,0.00019178,2]
[348753474,1736772562820,-500.0,0.00019178,2]
[348753475,1736772562841,-500.0,0.00019178,2]
[348753476,1736772562863,-500.0,0.00019178,2]
[348753477,1736772562884,-500.0,0.00019178,2]
[348753478,1736772562905,-500.0,0.00019178,2]
[348753479,1736772562930,-500.0,0.00019178,2]
[348753480,1736772562952,-500.0,0.00019178,2]
[348753481,1736772562976,-500.0,0.00019178,2]
[348753482,1736772562998,-500.0,0.00019178,2]
[348753483,1736772563019,-500.0,0.00019178,2]
[348753484,1736772563042,-500.0,0.00019178,2]
[348753485,1736772563067,-500.0,0.00019178,2]
[348753486,1736772563089,-500.0,0.00019178,2]
[348753487,1736772563112,-500.0,0.00019178,2]
[348753488,1736772563135,-500.0,0.00019178,2]
[348753489,1736772563157,-500.0,0.00019178,2]
[348753490,1736772563184,-504.57188026,0.00019178,2]
[348753491,1736772563205,-464.42158979,0.00019178,2]
[348753492,1736772563226,-500.0,0.00019178,2]
[348753493,1736772563248,-500.0,0.00019178,2]
[348753494,1736772563274,-500.0,0.00019178,2]
[348753495,1736772563296,-506.86160828,0.00019178,2]
[348753496,1736772563316,-500.0,0.00019178,2]
[348753497,1736772563339,-500.0,0.00019178,2]
[348753498,1736772563360,-500.0,0.00019178,2]
[348753499,1736772563385,-500.0,0.00019178,2]
[348753500,1736772563409,-500.0,0.00019178,2]
[348753501,1736772563433,-500.0,0.00019178,2]
[348753502,1736772563455,-500.0,0.00019178,2]
[348753503,1736772563476,-500.0,0.00019178,2]
[348753504,1736772563498,-500.0,0.00019178,2]
[348753505,1736772563520,-500.0,0.00019178,2]
[348753506,1736772563542,-482.78,0.00019178,2]
[348753507,1736772563564,-503.64374056,0.00019178,2]
[348753508,1736772563585,-531.79616678,0.00019178,2]
[348753509,1736772563606,-545.38,0.00019178,2]
[348753510,1736772563628,-503.06907034,0.00019178,2]
[348753511,1736772563648,-504.42075287,0.00019178,2]
[348753512,1736772563671,-502.50016208,0.00019178,2]
[348753513,1736772563692,-502.51579294,0.00019178,2]
[348753514,1736772563714,-503.12644779,0.00019178,2]
[348753515,1736772563736,-502.64131757,0.00019178,2]
[348753516,1736772563757,-504.88411538,0.00019178,2]
[348753517,1736772563778,-502.94502829,0.00019178,2]
[348753518,1736772563801,-500.0,0.00019178,2]
[348753519,1736772563822,-502.64894961,0.00019178,2]
[348753520,1736772563845,-191.785,0.0001937,2]
[348753521,1736772563869,-480.07,0.00019452,3]
[348753522,1736772563890,-500.0,0.00019452,3]
[348753523,1736772563911,-194.65862846,0.00019452,3]
[348753524,1736772563937,-500.0,0.00019452,3]
[348753525,1736772564053,-500.0,0.00019452,2]
[348753526,1736772564080,-545.38,0.00019452,3]
[348753527,1736772564101,-500.0,0.00019726,3]
[348753528,1736772564126,-613.78015439,0.00019726,3]
[348753529,1736772564149,-500.0,0.00019726,2]
[348753530,1736772564174,-545.38,0.00019726,3]
[348753531,1736772564196,-216.30254256,0.000199,2]
[348753532,1736772564218,-505.36769251,0.00019999,3]
[348753533,1736772564240,-506.56164683,0.00019999,3]
[348753534,1736772564260,-500.8198669,0.00019999,3]
[348753535,1736772564282,-523.22937153,0.00019999,3]
[348753536,1736772564303,-500.0,0.00019999,3]
[348753537,1736772564324,-500.0,0.00019999,3]
[348753538,1736772564345,-500.0,0.00019999,3]
[348753539,1736772564366,-500.0,0.00019999,3]
[348753540,1736772564390,-500.0,0.00019999,3]
[348753541,1736772564414,-500.0,0.00019999,3]
[348753542,1736772564438,-504.13,0.0002,2]
[348753543,1736772564459,-501.07216132,0.0002,3]
[348753544,1736772564480,-300.0,0.0002,8]
[348753545,1736772564503,-500.0,0.0002,2]
[348753546,1736772564525,-545.38,0.0002,3]
[348753547,1736772564547,-500.0,0.00020273,3]
[348753548,1736772564570,-500.0,0.00020273,2]
[348753549,1736772564592,-500.0,0.00020273,3]
[348753550,1736772564614,-545.38,0.00020273,3]
[348753551,1736772564637,-500.0,0.00020273,3]
[348753552,1736772564658,-187.631594,0.00020447,2]
[348753553,1736772564683,-473.05,0.00020547,2]
[348753554,1736772564706,-500.0,0.00020547,3]
[348753555,1736772564728,-545.38,0.00020547,3]
[348753556,1736772564751,-500.0,0.00020547,3]
[348753557,1736772564774,-500.0,0.00020821,3]
[348753558,1736772564798,-545.38,0.00020821,3]
[348753559,1736772564824,-500.0,0.00020821,3]
[348753560,1736772564848,-18751.95211118,0.00020851,2]
[348753561,1736772573080,-490.0,0.00019178,2]
[348753600,1736772632695,-178.93585638,0.000189,2]
[348753601,1736772632705,-300.0,0.00019177,2]
[348753602,1736772632715,-10.0,0.00019178,2]
[348753603,1736772632724,-500.0,0.00019178,2]
[348753604,1736772632736,-500.0,0.00019178,2]
[348753605,1736772632746,-500.0,0.00019178,2]
[348753606,1736772632756,-500.0,0.00019178,2]
[348753607,1736772632765,-500.0,0.00019452,3]
[348753608,1736772632776,-346.0212658,0.00019452,3]
[348753609,1736772632786,-500.0,0.00019452,3]
[348753610,1736772632796,-636.76222691,0.00019452,3]
[348753611,1736772632806,-232.56625738,0.00019452,3]
[348753612,1736772632816,-617.69,0.00019999,3]
[348753613,1736772632826,-453.72,0.000202,2]
[348753614,1736772632836,-12421.3430489,0.00021024,2]
[348753615,1736772632846,-500.0,0.00021095,3]
[348753616,1736772632856,-545.38,0.00021095,3]
[348753617,1736772632866,-500.0,0.00021369,3]
[348753618,1736772632877,-545.38,0.00021369,3]
[348753619,1736772632887,-300.0,0.000215,9]
[348753620,1736772632897,-500.0,0.00021643,3]
[348753621,1736772632906,-545.38,0.00021643,3]
[348753622,1736772632916,-216.30254255,0.000219,2]
[348753623,1736772632925,-947.93026441,0.00021917,2]
[348753625,1736772632934,-500.0,0.00021917,3]
[348753627,1736772632944,-545.38,0.00021917,3]
[348753628,1736772632953,-500.0,0.00022191,3]
[348753630,1736772632963,-545.38,0.00022191,3]
[348753632,1736772632972,-499.5,0.0002245,2]
[348753634,1736772632985,-500.0,0.00022465,3]
[348753636,1736772632998,-545.38,0.00022465,3]
[348753638,1736772633008,-500.0,0.00022739,3]
[348753640,1736772633017,-545.38,0.00022739,3]
[348753642,1736772633027,-7438.69753278,0.00023,2]
[348753644,1736772633037,-300.0,0.00023,10]
[348753646,1736772633047,-5124.24620723,0.00023,3]
[348753648,1736772633060,-2314.45132555,0.00023,3]
[348753650,1736772633070,-150.0,0.00023,2]
[348753652,1736772633080,-500.0,0.00023012,2]
[348753654,1736772633090,-500.0,0.00023012,2]
[348753656,1736772633101,-258.78651965,0.00023012,2]
[348753658,1736772633111,-500.0,0.00023012,2]
[348753660,1736772633120,-500.0,0.00023012,2]
[348753662,1736772633130,-348.30074769,0.00023012,2]
[348753664,1736772633139,-392.04725626,0.00023012,2]
[348753666,1736772633149,-76714.00381719,0.00023013,2]
[348753668,1736772633161,-407.89296144,0.00023013,2]
[348753673,1736772633198,-5876.1349295,0.00023013,2]
[348753931,1736772636029,-22979.15088259,0.00023013,2]
[348753934,1736772636041,-42700.0,0.00023013,2]
[348754185,1736772638325,-1409.56702392,0.00023013,2]
[348754514,1736772641523,-321.58971698,0.00023013,2]
[348754523,1736772641595,-18756.45269251,0.00023013,2]
[348754525,1736772641605,-500.0,0.00023013,3]
[348754527,1736772641615,-545.38,0.00023013,3]
[348754529,1736772641625,-500.0,0.00023287,3]
[348754531,1736772641636,-545.38,0.00023287,3]
[348754533,1736772641646,-151.0,0.000233,5]
[348754535,1736772641655,-424.5113705,0.00023387,2]
[348754537,1736772641665,-425.7335,0.000234,30]
[348754539,1736772641674,-3627.58169237,0.00023448,2]
[348754541,1736772641687,-7024.14398235,0.00023448,2]
[348754543,1736772641696,-500.0,0.00023561,3]
[348754545,1736772641706,-545.38,0.00023561,3]
[348754547,1736772641715,-208.338468,0.00023617,7]
[348754549,1736772641725,-151.0,0.00023622,7]
[348754551,1736772641737,-255.83443621,0.00023622,7]
[348754554,1736772641749,-8.66551479,0.00023622,7]
[348754556,1736772641759,-151.0,0.00023622,7]
[348754558,1736772641768,-151.0,0.00023622,7]
[348754560,1736772641778,-407.64987435,0.00023623,2]
[348754562,1736772641788,-500.0,0.00023624,2]
[348754564,1736772641798,-182.66265624,0.00023624,2]
[348754566,1736772641808,-213.46695462,0.00023624,2]
[348754568,1736772641820,-79.4391113,0.00023624,2]
[348754570,1736772641830,-187.38675269,0.00023624,2]
[348754572,1736772641840,-232.94980417,0.00023624,2]
[348754575,1736772641853,-267.05019583,0.00023624,2]
[348754577,1736772641863,-409.99795847,0.00023624,2]
[348754579,1736772641872,-151.0,0.00023625,7]
[348754581,1736772641883,-151.0,0.00023625,7]
[348754583,1736772641892,-151.0,0.00023625,7]
[348754585,1736772641901,-151.0,0.00023625,7]
[348754587,1736772641911,-151.0,0.00023625,7]
[348754589,1736772641921,-151.0,0.00023625,7]
[348754591,1736772641930,-151.0,0.00023625,7]
[348754593,1736772641939,-151.0,0.00023625,7]
[348754595,1736772641951,-151.0,0.00023625,7]
[348754597,1736772641960,-7032.35376346,0.00023625,5]
[348754599,1736772641971,-228.7096525,0.00023625,5]
[348754601,1736772641981,-615.48117124,0.00023625,5]
[348754603,1736772641998,-2990.084995,0.00023625,5]
[348754605,1736772642010,-3157.4254304,0.00023625,5]
[348754611,1736772642056,-2156.59797483,0.00023625,5]
[348754613,1736772642065,-7347.15252383,0.00023626,10]
[348754615,1736772642078,-41897.63018594,0.00023626,10]
[348754618,1736772642090,-7331.40768153,0.00023626,10]
[348754620,1736772642102,-18419.84178344,0.00023626,10]
[348754622,1736772642113,-8638.72955528,0.00023626,10]
[348754624,1736772642125,-9022.84367141,0.00023626,10]
[348754626,1736772642136,-7104.80147325,0.00023626,10]
[348754640,1736772642257,-235.78660761,0.00023012,2]
[348754642,1736772642266,-2038.05364534,0.00023626,10]
[348754780,1736772643214,-3302.47134826,0.00023626,10]
[348754782,1736772643226,-450.31346173,0.00023626,10]
[348754784,1736772643238,-3276.69999998,0.00023626,10]
[348754786,1736772643250,-292.5642875,0.00023626,10]
[348754810,1736772643475,-395.0,0.00022345,2]
[348754812,1736772643486,-243.07241197,0.00022913,2]
[348754814,1736772643496,-4569.33833076,0.00023626,10]
[348754824,1736772643587,-3792455.12534463,0.00023626,10]
[348754826,1736772643600,-2377.19449604,0.00023626,10]
[348754828,1736772643612,-14511.3293529,0.00023626,10]
[348754830,1736772643624,-26157.92344934,0.00023626,10]
[348754929,1736772646502,-500.0,0.00019178,2]
[348754930,1736772646512,-1312.67,0.00023626,10]
[348754932,1736772646524,-6945.52859826,0.00023626,10]
[348754934,1736772646547,-693.6739208,0.00023626,10]
[348754937,1736772646562,-33627.99415882,0.00023626,10]
[348754939,1736772646574,-36255.19999995,0.00023626,10]
[348754961,1736772951573,13800.0,0.00015,2]
[348754965,1736773442687,168.868434,0.00013973,2]
[348754967,1736773632109,-1734.9724094,0.00018152,2]
[348754968,1736773645208,-2754.8436102,0.00018152,2]
[348754969,1736773645231,-536.604408,0.00018176,2]
[348754970,1736773645255,-500.0,0.00018355,2]
[348754971,1736773645276,-241.5512998,0.00018658,2]
[348754972,1736773645299,-303.33290355,0.00019,2]
[348754973,1736773645323,-302.54622906,0.00019,2]
[348754974,1736773645346,-167.1894868,0.00019078,2]
[348754975,1736773645368,-300.0,0.00019173,2]
[348754976,1736773645392,-37624.03167616,0.00019173,2]
[348754977,1736773646095,-255.34027485,0.00019173,2]
[348754978,1736773757089,-202.13570833,0.00019173,2]
[348754979,1736773757113,-360.88935914,0.00019177,2]
[348754980,1736773770174,-14904.11064086,0.00019177,2]
[348754981,1736773770198,-500.0,0.00019177,2]
[348754982,1736773770220,-500.0,0.00019177,2]
[348754983,1736773770244,-500.0,0.00019177,2]
[348754984,1736773770267,-181.94879071,0.00019177,2]
[348754985,1736773770288,-516.03495286,0.00019178,2]
[348754986,1736773770310,-500.0,0.00019178,2]
[348754987,1736773770335,-500.0,0.00019178,2]
[348754988,1736773770360,-500.0,0.00019178,2]
[348754989,1736773770382,-500.0,0.00019178,2]
[348754990,1736773770402,-500.0,0.00019178,2]
[348754991,1736773770423,-500.0,0.00019178,2]
[348754992,1736773770445,-500.0,0.00019178,2]
[348754993,1736773770464,-500.0,0.00019178,2]
[348754994,1736773770486,-500.0,0.00019178,2]
[348754995,1736773770506,-500.0,0.00019178,2]
[348754996,1736773770527,-514.87043599,0.00019178,2]
[348754997,1736773770550,-525.18649919,0.00019178,2]
[348754998,1736773770570,-438.77908576,0.00019178,2]
[348754999,1736773770591,-531.33101352,0.00019178,2]
[348755000,1736773770611,-500.0,0.00019178,2]
[348755001,1736773770632,-500.0,0.00019178,2]
[348755002,1736773770652,-563.63750363,0.00019178,2]
[348755003,1736773770672,-649.02443415,0.00019178,2]
[348755004,1736773770693,-500.0,0.00019178,2]
[348755005,1736773770713,-500.0,0.00019178,2]
[348755006,1736773770733,-505.8242763,0.00019178,2]
[348755007,1736773770754,-507.14802199,0.00019178,2]
[348755008,1736773770774,-500.0,0.00019178,2]
[348755009,1736773770797,-500.0,0.00019178,2]
[348755010,1736773770817,-500.0,0.00019178,2]
[348755011,1736773770837,-470.28300718,0.00019178,2]
[348755012,1736773770858,-500.0,0.00019178,2]
[348755013,1736773770879,-500.0,0.00019178,2]
[348755014,1736773770900,-500.0,0.00019178,2]
[348755015,1736773770920,-500.0,0.00019178,2]
[348755016,1736773770949,-508.51,0.00019178,2]
[348755017,1736773770970,-500.0,0.00019178,2]
[348755018,1736773770991,-500.0,0.00019178,2]
[348755019,1736773771012,-540.46399491,0.00019178,2]
[348755020,1736773771033,-500.0,0.00019178,2]
[348755021,1736773771168,-506.87484243,0.00019178,2]
[348755022,1736773771196,-500.0,0.00019178,2]
[348755023,1736773771218,-500.0,0.00019178,2]
[348755024,1736773771239,-500.0,0.00019178,2]
[348755025,1736773771259,-501.41423843,0.00019178,2]
[348755026,1736773771279,-500.0,0.00019178,2]
[348755027,1736773771301,-500.0,0.00019178,2]
[348755028,1736773771322,-300.66508317,0.00019178,2]
[348755029,1736773771346,-500.0,0.00019178,2]
[348755030,1736773771369,-500.0,0.00019178,2]
[348755031,1736773771389,-500.0,0.00019178,2]
[348755032,1736773771411,-500.0,0.00019178,2]
[348755033,1736773771431,-500.0,0.00019178,2]
[348755034,1736773771452,-500.0,0.00019178,2]
[348755035,1736773771474,-500.0,0.00019178,2]
[348755036,1736773771495,-500.0,0.00019178,2]
[348755037,1736773771516,-500.0,0.00019178,2]
[348755038,1736773771538,-546.09,0.00019178,2]
[348755039,1736773771561,-502.56267418,0.00019178,2]
[348755040,1736773771582,-500.0,0.00019178,2]
[348755041,1736773771602,-500.0,0.00019178,2]
[348755042,1736773771622,-511.83123471,0.00019178,2]
[348755043,1736773771643,-576.94,0.00019178,2]